fUST/lending_fUST_20251213
["ID","MTS","AMOUNT","RATE_DAILY","PERIOD"]
[398423997,1765641032431,-150.0,0.00014512,2]
[398423999,1765641032440,-500.0,0.00014512,2]
[398424001,1765641032449,-199.0,0.00014641,2]
[398424003,1765641032459,-500.0,0.00014641,2]
[398424005,1765641032468,-150.0,0.00014649,2]
[398424007,1765641032478,-500.0,0.00014649,2]
[398424009,1765641032487,-538.74645999,0.00014649,2]
[398424011,1765641032497,-150.0,0.00014649,2]
[398424013,1765641032507,-500.0,0.00014649,2]
[398424015,1765641032516,-150.0,0.00014649,2]
[398424017,1765641032526,-500.0,0.00014649,2]
[398424019,1765641032535,-196.26572477,0.00014673,2]
[398424020,1765641032544,-151.0,0.00014764,2]
[398424022,1765641032553,-151.0,0.00014764,2]
[398424024,1765641032563,-151.0,0.00014764,2]
[398424025,1765641032572,-151.0,0.00014764,2]
[398424026,1765641032581,-151.0,0.00014764,2]
[398424027,1765641032590,-151.0,0.00014764,2]
[398424028,1765641032599,-151.0,0.00014764,2]
[398424030,1765641032609,-151.0,0.00014764,2]
[398424031,1765641032618,-151.0,0.00014764,2]
[398424032,1765641032627,-151.0,0.00014764,2]
[398424034,1765641032638,-151.0,0.00014764,2]
[398424036,1765641032647,-500.0,0.0001477,2]
[398424038,1765641032656,-500.0,0.0001477,2]
[398424040,1765641032665,-231.90050898,0.0001477,2]
[398424041,1765641032675,-215.917844,0.00014773,2]
[398424043,1765641032683,-215.917844,0.00014773,2]
[398424045,1765641032693,-215.917844,0.00014773,2]
[398424047,1765641032702,-215.917844,0.00014773,2]
[398424049,1765641032711,-215.917844,0.00014773,2]
[398424050,1765641032720,-215.917844,0.00014773,2]
[398424052,1765641032730,-215.917844,0.00014773,2]
[398424054,1765641032739,-215.917844,0.00014773,2]
[398424056,1765641032748,-151.0,0.00014773,2]
[398424058,1765641032758,-151.0,0.00014773,2]
[398424060,1765641032767,-368.066188,0.00014774,2]
[398424062,1765641032776,-368.066188,0.00014774,2]
[398424064,1765641032786,-368.066188,0.00014774,2]
[398424066,1765641032795,-368.066188,0.00014774,2]
[398424068,1765641032806,-500.0,0.00014774,2]
[398424070,1765641032816,-500.0,0.00014774,2]
[398424071,1765641032825,-500.0,0.00014774,2]
[398424073,1765641032834,-500.0,0.00014774,2]
[398424075,1765641032843,-368.066188,0.00014776,2]
[398424077,1765641032854,-368.066188,0.00014776,2]
[398424079,1765641032865,-368.066188,0.00014776,2]
[398424081,1765641032874,-368.066188,0.00014776,2]
[398424083,1765641032886,-500.0,0.00014778,2]
[398424085,1765641032895,-500.0,0.00014785,2]
[398424086,1765641032905,-500.0,0.00014785,2]
[398424088,1765641032914,-500.0,0.00014785,2]
[398424090,1765641032924,-500.0,0.00014785,2]
[398424092,1765641032934,-150.0,0.00014786,2]
[398424094,1765641032943,-500.0,0.00014786,2]
[398424096,1765641032953,-200.78157615,0.00014786,2]
[398424098,1765641032961,-249.43208193,0.00014786,2]
[398424100,1765641032971,-150.0,0.00014786,2]
[398424102,1765641032980,-500.0,0.00014786,2]
[398424103,1765641032989,-151.0,0.00014787,2]
[398424105,1765641032998,-151.0,0.00014787,2]
[398424107,1765641033007,-500.0,0.00014787,2]
[398424109,1765641033016,-500.0,0.00014787,2]
[398424111,1765641033026,-300.0,0.00014788,2]
[398424113,1765641033035,-300.0,0.00014788,2]
[398424115,1765641033044,-300.0,0.00014788,2]
[398424117,1765641033053,-300.0,0.00014788,2]
[398424119,1765641033063,-300.0,0.00014788,2]
[398424121,1765641033071,-300.0,0.00014788,2]
[398424123,1765641033081,-300.0,0.00014788,2]
[398424125,1765641033091,-300.0,0.00014788,2]
[398424126,1765641033100,-300.0,0.00014788,2]
[398424128,1765641033110,-300.0,0.00014788,2]
[398424131,1765641033119,-300.0,0.00014788,2]
[398424132,1765641033129,-300.0,0.00014788,2]
[398424134,1765641033138,-300.0,0.00014788,2]
[398424136,1765641033148,-300.0,0.00014788,2]
[398424138,1765641033157,-300.0,0.00014788,2]
[398424140,1765641033167,-151.0,0.00014788,2]
[398424142,1765641033175,-215.917844,0.00014788,2]
[398424144,1765641033185,-215.917844,0.00014788,2]
[398424146,1765641033194,-215.917844,0.00014788,2]
[398424148,1765641033204,-215.917844,0.00014788,2]
[398424150,1765641033213,-153.231009,0.00014788,2]
[398424152,1765641033223,-500.0,0.00014915,2]
[398424154,1765641033232,-150.0,0.00014923,2]
[398424156,1765641033241,-500.0,0.00014923,2]
[398424158,1765641033250,-201.0,0.00014923,2]
[398424160,1765641033260,-500.0,0.00014923,2]
[398424162,1765641033270,-500.0,0.00015052,2]
[398424164,1765641033279,-150.0,0.0001506,2]
[398424165,1765641033288,-500.0,0.0001506,2]
[398424167,1765641033298,-500.0,0.0001506,2]
[398424169,1765641033307,-334.26703136,0.00015073,2]
[398424171,1765641033317,-317.0,0.00015079,2]
[398424173,1765641033326,-600.0,0.00015083,2]
[398424175,1765641033336,-500.0,0.00015189,2]
[398424177,1765641033346,-250.0,0.00015197,2]
[398424179,1765641033356,-500.0,0.00015197,2]
[398424181,1765641033367,-500.0,0.00015197,2]
[398424183,1765641033376,-500.0,0.00015326,2]
[398424185,1765641033386,-500.0,0.00015334,2]
[398424187,1765641033395,-500.0,0.00015334,2]
[398424189,1765641033405,-500.0,0.00015463,2]
[398424191,1765641033414,-500.0,0.00015471,2]
[398424193,1765641033423,-515.7001869,0.00015471,2]
[398424195,1765641033437,-368.066188,0.00015471,2]
[398424197,1765641033446,-368.066188,0.00015471,2]
[398424198,1765641033456,-368.066188,0.00015471,2]
[398424200,1765641033466,-368.066188,0.00015471,2]
[398424202,1765641033476,-500.0,0.000156,2]
[398424204,1765641033485,-500.0,0.00015608,2]
[398424232,1765641033750,-217.19757613,0.00015737,2]
[398424234,1765641033761,-500.0,0.00015745,2]
[398424236,1765641033770,-1205.86114819,0.00015762,2]
[398424238,1765641033780,-500.0,0.00015882,2]
[398424240,1765641033789,-420.0,0.00015889,2]
[398424242,1765641033804,-1680.0,0.00015962,2]
[398424244,1765641033820,-274.1764263,0.00016019,2]
[398424246,1765641033830,-215.917844,0.00016019,2]
[398424247,1765641033840,-215.917844,0.00016019,2]
[398424249,1765641033849,-215.917844,0.00016019,2]
[398424251,1765641033861,-215.917844,0.00016019,2]
[398424253,1765641033870,-258.20473847,0.00016291,2]
[398424255,1765641033882,-295.09112969,0.00016291,2]
[398424257,1765641033892,-600.10028184,0.00016291,2]
[398424260,1765641033913,-1080.18050732,0.00016291,2]
[398424263,1765641033924,-286.05754437,0.00016291,2]
[398424265,1765641033934,-514.90357987,0.00016291,2]
[398424267,1765641033945,-915.38414199,0.00016291,2]
[398424269,1765641033955,-177.0,0.00016508,2]
[398424271,1765641033965,-720.0,0.00016591,2]
[398424273,1765641033975,-5383.17599472,0.00016688,2]
[398424275,1765641033985,-1920.3209019,0.00016757,2]
[398424277,1765641033996,-5383.17599472,0.00016758,2]
[398424279,1765641034006,-574.12855637,0.00016806,2]
[398424281,1765641034016,-213.90788908,0.00016806,2]
[398424283,1765641034027,-2247.38,0.00016806,2]
[398424285,1765641034037,-222.0,0.00016806,2]
[398424287,1765641034047,-2773.56790519,0.00016806,2]
[398424289,1765641034057,-5383.17599472,0.00016828,2]
[398424291,1765641034067,-368.066188,0.00016848,2]
[398424293,1765641034077,-368.066188,0.00016848,2]
[398424295,1765641034087,-368.066188,0.00016848,2]
[398424297,1765641034097,-368.066188,0.00016848,2]
[398424299,1765641034107,-5383.17599472,0.00016898,2]
[398424302,1765641034118,-361.47,0.00016949,3]
[398424303,1765641034128,-180.73,0.00016949,3]
[398424306,1765641034137,-542.22,0.00016949,3]
[398424308,1765641034147,-1445.88,0.00016959,3]
[398424310,1765641034157,-722.94,0.00016959,3]
[398424312,1765641034167,-5383.17599472,0.00016969,2]
[398424314,1765641034176,-334.60129839,0.00017005,2]
[398424315,1765641034186,-215.917844,0.00017024,2]
[398424317,1765641034196,-215.917844,0.00017024,2]
[398424319,1765641034206,-215.917844,0.00017024,2]
[398424321,1765641034216,-215.917835,0.00017024,2]
[398424323,1765641034225,-5383.17599472,0.00017039,2]
[398424325,1765641034235,-5383.17599472,0.00017109,2]
[398424327,1765641034244,-5383.17599472,0.00017179,2]
[398424329,1765641034254,-5383.17599472,0.00017249,2]
[398424331,1765641034264,-5388.55917071,0.00017319,2]
[398424333,1765641034273,-5783.51,0.00017334,3]
[398424335,1765641034283,-11109.75,0.00017344,3]
[398424337,1765641034293,-595.37131296,0.00017354,2]
[398424338,1765641034302,-222.0,0.00017354,2]
[398424341,1765641034312,-2876.18991768,0.00017354,2]
[398424343,1765641034322,-2891.76,0.00017365,3]
[398424345,1765641034332,-368.066188,0.00017375,2]
[398424347,1765641034342,-368.066188,0.00017375,2]
[398424349,1765641034352,-368.066188,0.00017375,2]
[398424351,1765641034362,-368.066184,0.00017375,2]
[398424353,1765641034372,-587.0,0.00017399,2]
[398424355,1765641034382,-288.68711318,0.00017503,2]
[398424357,1765641034397,-500.0,0.00017539,2]
[398424359,1765641034407,-1751.0,0.00017558,2]
[398424361,1765641034418,-617.40005154,0.00017902,2]
[398424363,1765641034427,-222.0,0.00017902,2]
[398424365,1765641034437,-2982.60894464,0.00017902,2]
[398424367,1765641034448,-196.26572476,0.00018245,2]
[398424369,1765641034458,-864.0,0.0001825,2]
[398424371,1765641034469,-280.59030232,0.00018318,3]
[398424373,1765641034478,-722.94,0.00018319,3]
[398424375,1765641034489,-361.46,0.00018319,3]
[398424377,1765641034498,-2891.76,0.00018329,3]
[398424379,1765641034508,-1445.88,0.00018329,3]
[398424381,1765641034519,-640.24385345,0.0001845,2]
[398424383,1765641034528,-222.0,0.0001845,2]
[398424386,1765641034539,-204.0,0.00018507,2]
[398424388,1765641034548,-11567.02,0.00018704,3]
[398424390,1765641034559,-22219.5,0.00018714,3]
[398424391,1765641034568,-5783.52,0.00018735,3]
[398424394,1765641034578,-160.0,0.00018868,2]
[398424395,1765641034588,-663.93287602,0.00018998,2]
[398424397,1765641034597,-222.0,0.00018998,2]
[398424399,1765641034608,-155.58774624,0.00019,2]
[398424401,1765641034618,-823.0,0.00019051,2]
[398424403,1765641034627,-296.42362148,0.00019291,2]
[398424405,1765641034637,-500.0,0.0001934,2]
[398424407,1765641034646,-500.0,0.0001934,2]
[398424409,1765641034657,-500.0,0.0001934,2]
[398424411,1765641034666,-500.0,0.0001934,2]
[398424413,1765641034676,-24653.3123698,0.00019341,2]
[398424415,1765641034686,-665.0026115,0.00019341,2]
[398424417,1765641034696,-158.833719,0.00019341,2]
[398424420,1765641034707,-250.0,0.00019388,2]
[398424422,1765641034717,-333.85,0.000194,2]
[398424424,1765641034730,-688.49839244,0.00019546,2]
[398424426,1765641034739,-253.4403564,0.00019663,2]
[398424428,1765641034749,-2211.11579047,0.00019858,2]
[398424430,1765641034758,-500.0,0.00019862,2]
[398424432,1765641034768,-500.0,0.00019862,2]
[398424434,1765641034778,-500.0,0.00019862,2]
[398424436,1765641034788,-500.0,0.00019862,2]
[398424438,1765641034797,-500.0,0.00019862,2]
[398424440,1765641034811,-500.0,0.00019862,2]
[398424442,1765641034821,-1000.0,0.00020075,10]
[398424444,1765641034831,-713.97283296,0.00020094,2]
[398424446,1765641034843,-2211.11579047,0.00020203,2]
[398424448,1765641034853,-500.0,0.00020255,2]
[398424450,1765641034863,-174.76997041,0.00020303,120]
[398424451,1765641034873,-155.58774624,0.00020336,20]
[398424452,1765641034883,-500.0,0.00020377,2]
[398424453,1765641034892,-500.0,0.00020387,2]
[398424454,1765641034902,-2211.11579047,0.00020413,2]
[398424455,1765641034912,-231.0,0.00020507,2]
[398424456,1765641034921,-2211.11579047,0.00020591,2]
[398424457,1765641034931,-199.90303627,0.00020642,2]
[398424458,1765641034940,-922.0,0.00020861,2]
[398424459,1765641034950,-500.0,0.00020896,2]
[398424460,1765641034959,-2211.11579047,0.00021087,2]
[398424461,1765641034969,-2211.11579047,0.00021097,2]
[398424462,1765641034979,-333.85,0.000211,2]
[398424463,1765641034988,-284.14349935,0.00021213,3]
[398424464,1765641034998,-500.0,0.00021222,2]
[398424465,1765641035007,-2211.11579047,0.00021534,2]
[398424466,1765641035016,-500.0,0.00021592,2]
[398424467,1765641035025,-267.37735911,0.00021658,2]
[398424468,1765641035035,-155.58774624,0.00021672,38]
[398424469,1765641035044,-75486.5411574,0.00021746,2]
[398424470,1765641035056,-500.0,0.00021752,2]
[398424471,1765641035065,-500.0,0.00021757,2]
[398424472,1765641035074,-500.0,0.00021781,2]
[398424473,1765641035084,-5500.8975372,0.00021791,2]
[398424474,1765641035093,-196.26572476,0.00021817,2]
[398424475,1765641035102,-500.0,0.00021818,2]
[398424476,1765641035112,-2211.11579047,0.00021854,2]
[398424477,1765641035121,-3517.05557252,0.00021875,2]
[398424478,1765641035131,-506.73538339,0.00021917,2]
[398424479,1765641035140,-500.0,0.00021917,2]
[398424480,1765641035150,-500.0,0.00021917,2]
[398424481,1765641035159,-637.09570869,0.00021917,2]
[398424482,1765641035169,-151.0,0.00021918,2]
[398424483,1765641035179,-151.347408,0.00021918,2]
[398424484,1765641035188,-151.0,0.00021918,2]
[398424485,1765641035198,-151.0,0.00021918,2]
[398424486,1765641035207,-151.0,0.00021918,2]
[398424487,1765641035217,-151.0,0.00021918,2]
[398424488,1765641035226,-151.0,0.00021918,2]
[398424489,1765641035235,-151.0,0.00021918,2]
[398424490,1765641035245,-151.0,0.00021918,2]
[398424491,1765641035255,-151.0,0.00021918,2]
[398424492,1765641035264,-151.0,0.00021918,2]
[398424493,1765641035274,-151.0,0.00021918,2]
[398424494,1765641035283,-152.544,0.00021918,2]
[398424495,1765641035293,-151.0,0.00021918,2]
[398424496,1765641035303,-152.416893,0.00021918,2]
[398424497,1765641035313,-151.0,0.00021918,2]
[398424498,1765641035322,-151.0,0.00021918,2]
[398424499,1765641035331,-151.0,0.00021918,2]
[398424500,1765641035341,-151.0,0.00021918,2]
[398424501,1765641035351,-151.0,0.00021918,2]
[398424502,1765641035361,-151.0,0.00021918,2]
[398424503,1765641035371,-159.235965,0.00021918,2]
[398424504,1765641035380,-151.0,0.00021918,2]
[398424505,1765641035389,-151.0,0.00021918,2]
[398424506,1765641035399,-151.0,0.00021918,2]
[398424507,1765641035409,-152.447944,0.00021918,2]
[398424508,1765641035419,-151.0,0.00021918,2]
[398424509,1765641035428,-151.0,0.00021918,2]
[398424510,1765641035438,-151.0,0.00021918,2]
[398424511,1765641035447,-151.0,0.00021918,2]
[398424512,1765641035457,-151.0,0.00021918,2]
[398424513,1765641035466,-151.0,0.00021918,2]
[398424514,1765641035476,-151.0,0.00021918,2]
[398424515,1765641035486,-151.0,0.00021918,2]
[398424516,1765641035496,-151.0,0.00021918,2]
[398424517,1765641035506,-151.0,0.00021918,2]
[398424518,1765641035516,-151.0,0.00021918,2]
[398424519,1765641035525,-151.0,0.00021918,2]
[398424520,1765641035535,-151.0,0.00021918,2]
[398424521,1765641035545,-151.0,0.00021918,2]
[398424522,1765641035555,-151.0,0.00021918,2]
[398424523,1765641035565,-151.0,0.00021918,2]
[398424524,1765641035575,-151.0,0.00021918,2]
[398424525,1765641035585,-151.0,0.00021918,2]
[398424526,1765641035595,-254.383808,0.00021918,2]
[398424527,1765641035605,-151.0,0.00021918,2]
[398424528,1765641035614,-151.0,0.00021918,2]
[398424529,1765641035625,-232.254253,0.00021918,2]
[398424530,1765641035634,-151.0,0.00021918,2]
[398424531,1765641035643,-151.0,0.00021918,2]
[398424532,1765641035654,-151.0,0.00021918,2]
[398424533,1765641035664,-151.0,0.00021918,2]
[398424534,1765641035673,-151.0,0.00021918,2]
[398424535,1765641035683,-151.0,0.00021918,2]
[398424536,1765641035693,-223.930661,0.00021918,2]
[398424537,1765641035703,-1651.61489,0.00021918,2]
[398424538,1765641035721,-1651.61489,0.00021918,2]
[398424539,1765641035732,-1651.61489,0.00021918,2]
[398424540,1765641035743,-1651.61489,0.00021918,2]
[398424541,1765641035752,-1651.61489,0.00021918,2]
[398424542,1765641035763,-1651.61489,0.00021918,2]
[398424543,1765641035773,-1651.61489,0.00021918,2]
[398424544,1765641035783,-1651.61489,0.00021918,2]
[398424545,1765641035794,-1651.61489,0.00021918,2]
[398424546,1765641035805,-1651.61489,0.00021918,2]
[398424547,1765641035818,-1651.61489,0.00021918,2]
[398424548,1765641035829,-1651.61489,0.00021918,2]
[398424549,1765641035839,-1651.61489,0.00021918,2]
[398424550,1765641035850,-1651.61489,0.00021918,2]
[398424551,1765641035860,-1651.61489,0.00021918,2]
[398424552,1765641035870,-1651.61489,0.00021918,2]
[398424553,1765641035880,-1651.61489,0.00021918,2]
[398424554,1765641035890,-1651.61489,0.00021918,2]
[398424555,1765641035901,-1651.61489,0.00021918,2]
[398424556,1765641035911,-1651.614897,0.00021918,2]
[398424557,1765641035921,-151.0,0.00021918,2]
[398424558,1765641035931,-161.17622,0.00021918,2]
[398424559,1765641035941,-319.268231,0.00021918,2]
[398424560,1765641035951,-319.268231,0.00021918,2]
[398424561,1765641035961,-319.268231,0.00021918,2]
[398424562,1765641035971,-319.268231,0.00021918,2]
[398424563,1765641035981,-319.268231,0.00021918,2]
[398424564,1765641035991,-319.268231,0.00021918,2]
[398424565,1765641036001,-319.268231,0.00021918,2]
[398424566,1765641036011,-319.268231,0.00021918,2]
[398424567,1765641036023,-319.268231,0.00021918,2]
[398424568,1765641036033,-319.268231,0.00021918,2]
[398424569,1765641036044,-319.268231,0.00021918,2]
[398424570,1765641036054,-319.268231,0.00021918,2]
[398424571,1765641036064,-319.268231,0.00021918,2]
[398424572,1765641036074,-319.268231,0.00021918,2]
[398424573,1765641036084,-319.268231,0.00021918,2]
[398424574,1765641036094,-319.268231,0.00021918,2]
[398424575,1765641036104,-319.268231,0.00021918,2]
[398424576,1765641036115,-319.268231,0.00021918,2]
[398424577,1765641036125,-319.268231,0.00021918,2]
[398424578,1765641036136,-319.268233,0.00021918,2]
[398424579,1765641036145,-696.298028,0.00021918,2]
[398424580,1765641036155,-696.298028,0.00021918,2]
[398424581,1765641036165,-696.298028,0.00021918,2]
[398424582,1765641036174,-696.298028,0.00021918,2]
[398424583,1765641036185,-696.298028,0.00021918,2]
[398424584,1765641036195,-696.298028,0.00021918,2]
[398424585,1765641036307,-696.298028,0.00021918,2]
[398424586,1765641036317,-696.298028,0.00021918,2]
[398424587,1765641036326,-696.298028,0.00021918,2]
[398424588,1765641036336,-696.298028,0.00021918,2]
[398424589,1765641036346,-696.298028,0.00021918,2]
[398424590,1765641036355,-696.298028,0.00021918,2]
[398424591,1765641036364,-696.298028,0.00021918,2]
[398424592,1765641036373,-696.298028,0.00021918,2]
[398424593,1765641036383,-696.298028,0.00021918,2]
[398424594,1765641036392,-696.298028,0.00021918,2]
[398424595,1765641036402,-696.298028,0.00021918,2]
[398424596,1765641036411,-696.298028,0.00021918,2]
[398424597,1765641036420,-696.298028,0.00021918,2]
[398424598,1765641036430,-696.298031,0.00021918,2]
[398424599,1765641036439,-638.978277,0.00021918,2]
[398424600,1765641036449,-638.978277,0.00021918,2]
[398424601,1765641036458,-638.978277,0.00021918,2]
[398424602,1765641036468,-638.978277,0.00021918,2]
[398424603,1765641036477,-638.978277,0.00021918,2]
[398424604,1765641036486,-638.978277,0.00021918,2]
[398424605,1765641036496,-638.978277,0.00021918,2]
[398424606,1765641036506,-638.978277,0.00021918,2]
[398424607,1765641036520,-638.978277,0.00021918,2]
[398424608,1765641036530,-638.978277,0.00021918,2]
[398424609,1765641036540,-638.978277,0.00021918,2]
[398424610,1765641036549,-638.978277,0.00021918,2]
[398424611,1765641036559,-638.978277,0.00021918,2]
[398424612,1765641036570,-638.978277,0.00021918,2]
[398424613,1765641036579,-638.978277,0.00021918,2]
[398424614,1765641036588,-638.978277,0.00021918,2]
[398424615,1765641036597,-638.978277,0.00021918,2]
[398424616,1765641036607,-638.978277,0.00021918,2]
[398424617,1765641036617,-638.978277,0.00021918,2]
[398424618,1765641036627,-638.978282,0.00021918,2]
[398424619,1765641036636,-151.0,0.00021918,2]
[398424620,1765641036645,-151.0,0.00021918,2]
[398424621,1765641036654,-151.0,0.00021918,2]
[398424622,1765641036663,-151.0,0.00021918,2]
[398424623,1765641036673,-151.0,0.00021918,2]
[398424624,1765641036682,-151.0,0.00021918,2]
[398424625,1765641036691,-151.0,0.00021918,2]
[398424626,1765641036702,-151.0,0.00021918,2]
[398424627,1765641036711,-151.0,0.00021918,2]
[398424628,1765641036720,-151.0,0.00021918,2]
[398424629,1765641036729,-151.0,0.00021918,2]
[398424630,1765641036738,-151.0,0.00021918,2]
[398424631,1765641036747,-192.182397,0.00021918,2]
[398424632,1765641036756,-151.0,0.00021918,2]
[398424633,1765641036765,-152.650231,0.00021918,2]
[398424634,1765641036775,-151.0,0.00021918,2]
[398424635,1765641036784,-151.0,0.00021918,2]
[398424636,1765641036793,-151.0,0.00021918,2]
[398424637,1765641036803,-151.0,0.00021918,2]
[398424638,1765641036814,-151.0,0.00021918,2]
[398424639,1765641036824,-151.0,0.00021918,2]
[398424640,1765641036834,-151.0,0.00021918,2]
[398424641,1765641036843,-151.0,0.00021918,2]
[398424642,1765641036852,-151.0,0.00021918,2]
[398424643,1765641036861,-151.0,0.00021918,2]
[398424644,1765641036871,-228.026485,0.00021918,2]
[398424645,1765641036880,-234.798558,0.00021918,2]
[398424646,1765641036889,-234.798558,0.00021918,2]
[398424647,1765641036898,-234.798558,0.00021918,2]
[398424648,1765641036907,-234.798558,0.00021918,2]
[398424649,1765641036917,-234.798558,0.00021918,2]
[398424650,1765641036927,-234.798558,0.00021918,2]
[398424651,1765641036937,-151.0,0.00021918,2]
[398424652,1765641036946,-234.798558,0.00021918,2]
[398424653,1765641036956,-151.0,0.00021918,2]
[398424654,1765641036965,-234.798558,0.00021918,2]
[398424655,1765641036974,-151.0,0.00021918,2]
[398424656,1765641036984,-234.798558,0.00021918,2]
[398424657,1765641036993,-151.0,0.00021918,2]
[398424658,1765641037002,-234.798558,0.00021918,2]
[398424659,1765641037012,-151.0,0.00021918,2]
[398424660,1765641037021,-234.798558,0.00021918,2]
[398424661,1765641037030,-151.0,0.00021918,2]
[398424662,1765641037039,-234.798558,0.00021918,2]
[398424663,1765641037050,-234.798558,0.00021918,2]
[398424664,1765641037060,-234.798558,0.00021918,2]
[398424665,1765641037069,-234.798558,0.00021918,2]
[398424666,1765641037079,-151.0,0.00021918,2]
[398424667,1765641037090,-234.798558,0.00021918,2]
[398424668,1765641037099,-151.0,0.00021918,2]
[398424669,1765641037108,-234.798558,0.00021918,2]
[398424670,1765641037119,-151.0,0.00021918,2]
[398424671,1765641037129,-234.798558,0.00021918,2]
[398424672,1765641037139,-151.0,0.00021918,2]
[398424673,1765641037151,-234.798558,0.00021918,2]
[398424674,1765641037160,-159.029707,0.00021918,2]
[398424675,1765641037172,-234.798551,0.00021918,2]
[398424676,1765641037181,-3365.614829,0.00021918,2]
[398424677,1765641037191,-3365.614829,0.00021918,2]
[398424678,1765641037201,-3365.614829,0.00021918,2]
[398424679,1765641037210,-3365.614829,0.00021918,2]
[398424680,1765641037220,-3365.614829,0.00021918,2]
[398424681,1765641037229,-3365.614829,0.00021918,2]
[398424682,1765641037239,-3365.614829,0.00021918,2]
[398424683,1765641037248,-3365.614829,0.00021918,2]
[398424684,1765641037258,-3365.614829,0.00021918,2]
[398424685,1765641037267,-3365.614829,0.00021918,2]
[398424686,1765641037277,-3365.614829,0.00021918,2]
[398424687,1765641037287,-3365.614829,0.00021918,2]
[398424688,1765641037297,-3365.614829,0.00021918,2]
[398424689,1765641037307,-3365.614829,0.00021918,2]
[398424690,1765641037316,-3365.614829,0.00021918,2]
[398424691,1765641037326,-3365.614829,0.00021918,2]
[398424692,1765641037337,-3365.614829,0.00021918,2]
[398424693,1765641037347,-3365.614829,0.00021918,2]
[398424694,1765641037356,-3365.614829,0.00021918,2]
[398424695,1765641037366,-3365.614837,0.00021918,2]
[398424696,1765641037376,-2244.865449,0.00021918,2]
[398424697,1765641037385,-2244.865449,0.00021918,2]
[398424698,1765641037395,-2244.865449,0.00021918,2]
[398424699,1765641037410,-2244.865449,0.00021918,2]
[398424700,1765641037420,-2244.865449,0.00021918,2]
[398424701,1765641037430,-2244.865449,0.00021918,2]
[398424702,1765641037440,-2244.865449,0.00021918,2]
[398424703,1765641037450,-2244.865449,0.00021918,2]
[398424704,1765641037459,-2244.865449,0.00021918,2]
[398424705,1765641037469,-2244.865449,0.00021918,2]
[398424706,1765641037479,-2244.865449,0.00021918,2]
[398424707,1765641037489,-2244.865449,0.00021918,2]
[398424708,1765641037499,-201.702647,0.00021918,2]
[398424709,1765641037508,-2244.865449,0.00021918,2]
[398424710,1765641037518,-2244.865449,0.00021918,2]
[398424711,1765641037528,-2244.865449,0.00021918,2]
[398424712,1765641037537,-2244.865449,0.00021918,2]
[398424713,1765641037546,-2244.865449,0.00021918,2]
[398424714,1765641037556,-2244.865449,0.00021918,2]
[398424715,1765641037565,-2244.865449,0.00021918,2]
[398424716,1765641037575,-2244.865454,0.00021918,2]
[398424717,1765641037584,-232.466846,0.00021918,2]
[398424718,1765641037595,-845.31844,0.00021918,2]
[398424719,1765641037604,-845.31844,0.00021918,2]
[398424720,1765641037614,-845.31844,0.00021918,2]
[398424721,1765641037623,-845.31844,0.00021918,2]
[398424722,1765641037634,-845.31844,0.00021918,2]
[398424723,1765641037644,-845.31844,0.00021918,2]
[398424724,1765641037653,-845.31844,0.00021918,2]
[398424725,1765641037662,-845.31844,0.00021918,2]
[398424726,1765641037672,-845.31844,0.00021918,2]
[398424727,1765641037681,-845.31844,0.00021918,2]
[398424728,1765641037691,-845.31844,0.00021918,2]
[398424729,1765641037700,-845.31844,0.00021918,2]